bitfinex/quotes_SOLUSD_20250517
["timestamp","ask_amount","ask_price","bid_price","bid_amount"]
[1747448341529,17.9215762,164.91,164.84,26.0]
[1747448341847,12.46395016,164.9,164.84,26.0]
[1747448342253,12.46395016,164.89,164.84,26.0]
[1747448343023,17.92229865,164.89,164.84,26.0]
[1747448343347,5.45719136,164.92,164.85,18.64964886]
[1747448343558,26.10422705,164.96,164.85,18.64964886]
[1747448343729,12.46395016,164.95,164.89,18.64964886]
[1747448344141,12.46395016,164.94,164.89,18.64964886]
[1747448344331,12.46395016,164.92,164.88,24.32]
[1747448344535,12.46395016,164.91,164.88,24.32]
[1747448345452,17.92157509,164.91,164.88,24.32]
[1747448345645,19.88432604,164.98,164.88,24.32]
[1747448345832,12.46395016,164.94,164.89,44.64964886]
[1747448346351,12.46395016,164.91,164.88,24.32]
[1747448346739,12.46395016,164.92,164.88,24.32]
[1747448347796,12.46395016,164.91,164.88,24.32]
[1747448348260,12.46395016,164.89,164.84,26.0]
[1747448348469,5.45748451,164.92,164.84,44.64964886]
[1747448348638,12.46395016,164.91,164.84,44.64964886]
[1747448348959,17.92143467,164.92,164.84,44.64964886]
[1747448349351,12.46395016,164.89,164.84,50.71604291]
[1747448349857,5.45851528,164.88,164.84,44.64964886]
[1747448350166,17.92219437,164.89,164.84,44.64964886]
[1747448350459,12.46395016,164.85,164.78,134.7]
[1747448350665,12.46395016,164.81,164.78,134.7]
[1747448350836,12.46395016,164.81,164.79,18.64964886]
[1747448351471,12.46395016,164.8,164.78,26.0]
[1747448352171,12.46395016,164.81,164.78,26.0]
[1747448352357,12.46395016,164.82,164.79,18.64964886]
[1747448352560,5.45983984,164.84,164.79,18.64964886]
[1747448352857,12.46395016,164.83,164.79,18.64964886]
[1747448353062,5.45983984,164.84,164.78,26.0]
[1747448353063,12.46395016,164.8,164.78,26.0]
[1747448353274,12.46395016,164.8,164.76,24.22]
[1747448353449,12.46395016,164.8,164.76,50.22]
[1747448354351,12.46395016,164.79,164.76,50.22]
[1747448355293,17.92540311,164.8,164.76,50.22]
[1747448355880,5.45917748,164.86,164.77,18.64964886]
[1747448356079,12.46395016,164.82,164.77,18.64964886]
[1747448356460,12.46395016,164.79,164.76,50.22]
[1747448356668,12.46395016,164.8,164.76,50.22]
[1747448357277,12.46395016,164.79,164.76,50.22]
[1747448358182,12.46395016,164.79,164.76,24.22]
[1747448358352,5.46079593,164.82,164.76,24.22]
[1747448358675,12.46395016,164.8,164.76,24.22]
[1747448359379,12.46395016,164.79,164.76,24.22]
[1747448359552,12.46395016,164.78,164.76,24.22]
[1747448360447,12.46395016,164.8,164.76,24.22]
[1747448360651,1.5867,164.83,164.77,26.0]
[1747448360652,5.46050236,164.82,164.77,26.0]
[1747448360884,5.45983984,164.84,164.77,26.0]
[1747448361056,12.46395016,164.83,164.77,26.0]
[1747448361384,12.46395016,164.82,164.77,26.0]
[1747448361681,12.46395016,164.81,164.77,26.0]
[1747448361881,12.46395016,164.81,164.77,18.64964886]
[1747448362196,12.46395016,164.82,164.77,18.64964886]
[1747448362843,12.46395016,164.83,164.77,24.71848539]
[1747448362994,12.46395016,164.83,164.79,26.0]
[1747448363151,12.46395016,164.84,164.79,26.0]
[1747448363577,32.2867,164.87,164.77,50.71848539]
[1747448363774,51.52359325,164.94,164.81,18.64964886]
[1747448363775,12.46395016,164.88,164.81,18.64964886]
[1747448363983,5.45793879,164.9,164.81,18.64964886]
[1747448364287,12.46395016,164.88,164.84,26.0]
[1747448364457,5.45793879,164.9,164.84,26.0]
[1747448364659,12.46395016,164.88,164.84,32.06645707]
[1747448364886,12.46395016,164.87,164.84,26.0]
[1747448365264,12.46395016,164.88,164.84,26.0]
[1747448365474,7.01409199,164.91,164.84,32.06628977]
[1747448365656,12.46395016,164.89,164.84,32.06628977]
[1747448365989,7.01409199,164.91,164.84,32.06628977]
[1747448366190,12.46395016,164.89,164.84,32.06628977]
[1747448366988,12.46395016,164.9,164.85,18.64964886]
[1747448367374,12.46395016,164.89,164.84,32.06628977]
[1747448367676,26.0,164.91,164.82,6.06695851]
[1747448367876,12.46395016,164.83,164.79,24.71789884]
[1747448368069,12.46395016,164.83,164.79,50.71789884]
[1747448368255,12.46395016,164.88,164.79,50.71789884]
[1747448368462,12.46395016,164.88,164.79,24.71789884]
[1747448368681,12.46395016,164.84,164.79,24.71789884]
[1747448368885,5.45936753,164.86,164.8,32.06783329]
[1747448369064,12.46395016,164.84,164.8,32.06783329]
[1747448369390,12.46395016,164.84,164.8,26.0]
[1747448370372,12.46395016,164.83,164.8,26.0]
[1747448370774,12.46395016,164.84,164.8,26.0]
[1747448371586,12.46395016,164.84,164.8,32.06776738]
[1747448372062,5.45916904,164.87,164.8,32.06776738]
[1747448372262,12.46395016,164.87,164.81,18.64964886]
[1747448372458,12.46395016,164.88,164.81,18.64964886]
[1747448372765,12.46395016,164.87,164.81,18.64964886]
[1747448372955,12.46395016,164.87,164.81,24.71697217]
[1747448373162,31.45785324,164.9,164.81,18.64964886]
[1747448373377,12.46395016,164.85,164.8,160.7]
[1747448373699,12.46395016,164.85,164.8,134.7]
[1747448374263,12.46395016,164.83,164.8,134.7]
[1747448374576,12.46395016,164.81,164.76,30.3472]
[1747448374787,1.6379,164.87,164.77,26.0]
[1747448375083,12.46395016,164.83,164.79,6.06832938]
[1747448375484,12.46395016,164.85,164.79,6.06832938]
[1747448375780,12.46395016,164.85,164.8,18.64964886]
[1747448376989,5.45851528,164.88,164.8,24.7175088]
[1747448377190,12.46395016,164.85,164.8,6.06785994]
[1747448378092,5.45851528,164.88,164.8,18.64964886]
[1747448378304,12.46395016,164.84,164.79,6.06832938]
[1747448378605,31.56875364,164.88,164.79,6.06832938]
[1747448378779,5.45851528,164.88,164.81,26.0]
[1747448378984,12.46395016,164.85,164.81,26.0]
[1747448379174,12.46395016,164.84,164.81,26.0]
[1747448379504,7.7702195,164.84,164.81,26.0]
[1747448379704,7.7702195,164.83,164.77,6.06906597]
[1747448379865,7.7702195,164.83,164.78,18.64964886]
[1747448380284,7.7702195,164.83,164.78,24.71817667]
[1747448381366,7.7702195,164.83,164.77,26.0]
[1747448381367,7.7702195,164.81,164.77,26.0]
[1747448381778,7.7702195,164.82,164.77,32.06886008]
[1747448382082,7.7702195,164.83,164.77,32.06886008]
[1747448382277,7.7702195,164.82,164.77,26.0]
[1747448382480,7.7702195,164.8,164.77,26.0]
[1747448382711,7.7702195,164.81,164.77,26.0]
[1747448383513,7.7702195,164.8,164.76,24.22]
[1747448383685,7.7702195,164.77,164.73,24.72016742]
[1747448383879,7.7702195,164.75,164.71,30.21092688]
[1747448384294,7.7702195,164.76,164.72,18.64964886]
[1747448384616,7.7702195,164.77,164.72,18.64964886]
[1747448384819,7.7702195,164.78,164.72,18.64964886]
[1747448385521,7.01318277,164.83,164.76,6.06943432]
[1747448385681,1.553,164.83,164.76,6.06943432]
[1747448385883,7.7702195,164.81,164.76,6.06943432]
[1747448387326,13.23108375,164.81,164.73,6.07053967]
[1747448387614,7.7702195,164.79,164.74,18.64964886]
[1747448387783,7.7702195,164.76,164.71,24.14]
[1747448387989,7.7702195,164.76,164.73,26.0]
[1747448388286,7.7702195,164.77,164.73,26.0]
[1747448388503,7.7702195,164.76,164.73,26.0]
[1747448389316,7.7702195,164.74,164.71,24.14]
[1747448389494,5.46182789,164.78,164.71,24.14]
[1747448389495,7.7702195,164.73,164.71,24.14]
[1747448389697,7.7702195,164.73,164.68,284.11210883]
[1747448390419,19.11639761,164.78,164.68,284.11210883]
[1747448390591,7.7702195,164.73,164.68,284.11210883]
[1747448390793,7.7702195,164.72,164.68,32.07235997]
[1747448391495,20.18039843,164.77,164.68,32.07235997]
[1747448391685,7.7702195,164.73,164.68,32.07235997]
[1747448392315,7.7702195,164.72,164.68,32.07235997]
[1747448393104,5.46249089,164.76,164.68,32.07235997]
[1747448393310,7.7702195,164.73,164.68,32.07235997]
[1747448394116,7.7702195,164.73,164.68,26.0]
[1747448394313,7.7702195,164.7,164.66,24.14]
[1747448394614,7.7702195,164.7,164.66,50.14]
[1747448394912,7.7702195,164.67,164.62,6.07423397]
[1747448395116,33.4015195,164.72,164.63,26.0]
[1747448395316,7.7702195,164.68,164.62,6.07423397]
[1747448395515,7.7702195,164.71,164.63,18.64964886]
[1747448395818,7.7702195,164.73,164.67,18.64964886]
[1747448396418,7.7702195,164.73,164.68,6.0723828]
[1747448396919,7.7702195,164.72,164.67,24.72234608]
[1747448397103,7.7702195,164.7,164.66,26.0]
[1747448398112,5.46319337,164.74,164.63,134.7]
[1747448398113,7.7702195,164.69,164.63,134.7]
[1747448398325,5.46319337,164.74,164.61,24.14]
[1747448398326,7.7702195,164.64,164.61,24.14]
[1747448398623,5.46517676,164.68,164.61,24.14]
[1747448398814,1.55,164.69,164.61,24.14]
[1747448398815,7.7702195,164.67,164.61,30.21481169]
[1747448399317,7.7702195,164.66,164.61,30.21481169]
[1747448399721,7.7702195,164.65,164.61,24.14]
[1747448399921,7.7702195,164.64,164.61,24.14]
[1747448400300,7.7702195,164.64,164.61,30.21492782]
[1747448400492,7.7702195,164.66,164.61,30.21492782]
[1747448400709,7.7702195,164.64,164.61,24.14]
[1747448400909,5.46541772,164.68,164.61,30.21490505]
[1747448401219,7.7702195,164.65,164.61,30.21490505]
[1747448401791,25.65,164.69,164.61,30.21490505]
[1747448401792,7.7702195,164.66,164.61,30.21490505]
[1747448402014,31.11484069,164.69,164.61,30.21490505]
[1747448402222,7.7702195,164.66,164.61,30.21490505]
[1747448402392,7.7702195,164.68,164.62,44.64964886]
[1747448402593,7.7702195,164.69,164.62,44.64964886]
[1747448403098,7.7702195,164.67,164.62,26.0]
[1747448403310,7.7702195,164.66,164.62,26.0]
[1747448404191,7.7702195,164.64,164.61,24.14]
[1747448404438,7.7702195,164.63,164.59,6.07566221]
[1747448405896,7.7702195,164.65,164.61,26.0]
[1747448406121,30.7,164.71,164.63,26.0]
[1747448406301,7.7702195,164.71,164.63,26.0]
[1747448406620,7.7702195,164.7,164.64,6.07385811]
[1747448406821,7.7702195,164.69,164.64,6.07385811]
[1747448408019,13.23507872,164.69,164.64,6.07385811]
[1747448408599,7.7702195,164.69,164.64,6.07385811]
[1747448409610,7.7702195,164.7,164.64,6.07385811]
[1747448409803,13.23470817,164.7,164.64,6.07385811]
[1747448410137,7.7702195,164.69,164.64,6.07385811]
[1747448411001,7.7702195,164.74,164.68,26.0]
[1747448411231,7.7702195,164.75,164.68,26.0]
[1747448411601,7.7702195,164.74,164.68,26.0]
[1747448411920,7.7702195,164.74,164.69,6.07201408]
[1747448412128,7.7702195,164.75,164.69,6.07201408]
[1747448412712,5.46249089,164.76,164.69,6.07201408]
[1747448412906,7.7702195,164.75,164.69,6.07201408]
[1747448413106,26.0,164.79,164.69,6.07201408]
[1747448413107,7.6874,164.81,164.7,18.64964886]
[1747448413430,6.9981306,164.81,164.72,18.64964886]
[1747448413645,6.9981306,164.81,164.75,26.0]
[1747448413646,7.7702195,164.81,164.75,26.0]
[1747448413999,7.7702195,164.81,164.76,6.06943432]
[1747448414209,5.45993042,164.84,164.76,6.06943432]
[1747448414414,7.7702195,164.82,164.76,6.06943432]
[1747448414604,1.5372,164.9,164.8,26.0]
[1747448414821,7.7702195,164.86,164.8,26.0]
[1747448415231,7.7702195,164.85,164.8,26.0]
[1747448415536,7.7702195,164.83,164.78,24.06]
[1747448415743,7.7702195,164.81,164.78,24.06]
[1747448416402,7.7702195,164.79,164.75,26.0]
[1747448416910,5.45983984,164.84,164.71,42.70964886]
[1747448416911,7.7702195,164.77,164.71,42.70964886]
[1747448417129,7.7702195,164.76,164.72,26.0]
[1747448417338,7.7702195,164.76,164.71,24.06]
[1747448417519,7.7702195,164.75,164.71,24.06]
[1747448417718,7.7702195,164.75,164.71,30.13116472]
[1747448417913,7.7702195,164.76,164.71,30.13116472]
[1747448418321,7.7702195,164.79,164.74,26.0]
[1747448419415,7.7702195,164.82,164.75,18.64964886]
[1747448419723,7.7702195,164.81,164.75,18.64964886]
[1747448420433,7.7702195,164.81,164.76,6.06943432]
[1747448421359,12.43767263,164.81,164.76,6.06943432]
[1747448422559,5.45954029,164.85,164.77,18.64964886]
[1747448422725,12.43767263,164.82,164.77,18.64964886]
[1747448423353,5.45884636,164.87,164.77,50.81294886]
[1747448423652,12.43767263,164.86,164.8,26.0]
[1747448423865,1.6168,164.95,164.85,18.64964886]
[1747448424154,12.43767263,164.91,164.85,18.64964886]
[1747448424331,12.43767263,164.9,164.85,18.64964886]
[1747448424649,12.43767263,164.9,164.86,6.06575275]
[1747448425220,5.45707148,164.93,164.82,15.16765786]
[1747448425221,12.43767263,164.89,164.83,18.64964886]
[1747448426331,12.43767263,164.9,164.83,18.64964886]
[1747448426652,12.43767263,164.9,164.83,24.7162689]
[1747448426653,12.43767263,164.89,164.83,24.7162689]
[1747448426855,5.4578703,164.9,164.83,24.7162689]
[1747448427152,12.43767263,164.89,164.83,24.7162689]
[1747448427372,17.89554293,164.9,164.83,24.7162689]
[1747448428256,19.09785375,164.94,164.83,24.7162689]
[1747448428563,12.43767263,164.89,164.83,24.7162689]
[1747448429069,3.06984063,165.09,164.9,26.0]
[1747448429258,9.32113917,165.13,164.93,18.64964886]
[1747448429442,12.43767263,165.09,165.01,18.64964886]
[1747448429755,12.43767263,165.06,165.02,24.04]
[1747448430071,12.43767263,165.04,165.02,24.04]
[1747448430250,12.43767263,165.05,165.02,24.04]
[1747448430765,31.4515838,165.09,164.93,18.64964886]
[1747448430766,12.43767263,165.03,164.93,18.64964886]
[1747448430982,12.43767263,164.98,164.93,18.64964886]
[1747448431140,12.43767263,164.96,164.92,18.64964886]
[1747448431342,26.0,165.01,164.92,44.64964886]
[1747448431662,12.43767263,164.95,164.91,251.1]
[1747448431831,12.43767263,164.93,164.91,24.04]
[1747448432035,12.43767263,164.93,164.89,3.15678114]
[1747448432254,12.43767263,164.93,164.89,29.15678114]
[1747448432734,12.43767263,164.92,164.89,3.15678114]
[1747448433061,12.43767263,164.9,164.89,3.15678114]
[1747448433256,12.43767263,164.96,164.89,3.15678114]
[1747448433467,12.43767263,164.91,164.89,3.15678114]
[1747448433765,5.45561374,164.97,164.89,3.15678114]
[1747448433938,12.43767263,164.94,164.89,3.15678114]
[1747448434132,5.45561374,164.97,164.89,3.15678114]
[1747448434330,12.43767263,164.95,164.89,9.22140732]
[1747448434749,12.43767263,164.94,164.89,9.22140732]
[1747448434930,12.43767263,164.96,164.9,18.64964886]
[1747448435142,5.45552645,164.98,164.9,18.64964886]
[1747448435348,12.43767263,164.96,164.9,18.64964886]
[1747448435742,12.43767263,164.94,164.89,26.0]
[1747448437063,5.45611607,164.96,164.89,32.06457359]
[1747448437369,12.43767263,164.96,164.9,18.64964886]
[1747448438760,12.43767263,164.95,164.9,18.64964886]
[1747448438953,5.45487605,164.99,164.9,18.64964886]
[1747448439258,12.43767263,164.95,164.9,18.64964886]
[1747448439861,12.43767263,164.95,164.9,24.71377224]
[1747448440160,12.43767263,164.96,164.9,24.71377224]
[1747448440352,12.43767263,164.97,164.9,24.71377224]
[1747448440554,12.43767263,164.98,164.9,24.71377224]
[1747448440865,12.43767263,164.99,164.93,26.0]
[1747448441070,5.45355389,165.03,164.94,18.64964886]
[1747448441368,12.43767263,165.03,164.97,26.0]
[1747448441552,12.43767263,165.02,164.97,26.0]
[1747448443466,12.43767263,165.02,164.97,32.06169471]
[1747448444073,12.43767263,165.01,164.97,26.0]
[1747448444556,17.89199673,165.01,164.97,26.0]
[1747448445567,12.43767263,165.0,164.95,23.94]
[1747448445862,5.4543241,165.01,164.95,23.94]
[1747448445863,12.43767263,164.98,164.95,23.94]
[1747448447359,12.43767263,164.98,164.92,26.0]
[1747448447360,12.43767263,164.97,164.92,26.0]
[1747448448154,5.45454545,165.0,164.93,18.64964886]
[1747448448456,12.43767263,165.01,164.95,26.0]
[1747448448760,12.43767263,165.02,164.96,18.64964886]
[1747448449347,12.43767263,165.02,164.96,24.71138772]
[1747448451578,17.89158804,165.02,164.96,24.71138772]
[1747448452160,17.89158804,165.02,164.96,18.64964886]
[1747448452161,12.43767263,165.01,164.96,18.64964886]
[1747448453557,17.89195014,165.01,164.96,18.64964886]
[1747448454580,5.45427751,165.01,164.96,18.64964886]
[1747448454769,17.89195014,165.01,164.96,18.64964886]
[1747448454971,12.43767263,165.01,164.96,24.7117098]
[1747448456482,17.89164281,165.02,164.96,24.7117098]
[1747448457575,12.43767263,165.01,164.96,18.64964886]
[1747448457895,17.89164281,165.02,164.96,24.71160372]
[1747448458178,17.89120167,165.04,164.96,24.71160372]
[1747448458366,17.89120167,165.04,164.98,18.64964886]
[1747448459273,5.45286989,165.06,164.98,50.71067389]
[1747448459460,12.43767263,165.05,164.98,50.71067389]
[1747448459856,5.45286989,165.06,164.98,50.71067389]
[1747448460167,12.43767263,165.09,165.02,18.64964886]
[1747448460988,5.45053668,165.13,165.06,18.64964886]
[1747448461199,17.88820931,165.13,165.07,6.05803598]
[1747448461404,12.43767263,165.12,165.07,6.05803598]
[1747448461586,5.45053668,165.13,165.06,18.64964886]
[1747448461764,27.24240369,165.19,165.06,18.64964886]
[1747448461765,5.44662309,165.24,165.12,26.0]
[1747448461959,12.43767263,165.2,165.13,42.58964886]
[1747448462155,12.43767263,165.19,165.13,42.58964886]
[1747448462383,12.43767263,165.2,165.13,42.58964886]
[1747448462584,12.43767263,165.19,165.13,42.58964886]
[1747448462905,12.43767263,165.18,165.13,23.94]
[1747448463185,19.06318082,165.24,165.13,29.99576859]
[1747448463392,12.43767263,165.18,165.13,29.99576859]
[1747448463686,5.44662309,165.24,165.14,18.64964886]
[1747448463890,5.44662309,165.24,165.16,18.64964886]
[1747448464069,12.43767263,165.23,165.16,18.64964886]
[1747448464590,12.43767263,165.22,165.16,18.64964886]
[1747448465099,17.88464317,165.23,165.17,6.05436822]
[1747448465398,12.43767263,165.24,165.18,18.64964886]
[1747448465698,13.60918765,165.33,165.21,26.0]
[1747448465869,12.43767263,165.26,165.2,23.92]
[1747448466066,12.43767263,165.26,165.2,49.92]
[1747448466564,12.43767263,165.26,165.19,23.92]
[1747448466764,12.43767263,165.24,165.19,23.92]
[1747448467180,17.88432597,165.24,165.19,23.92]
[1747448467391,12.43767263,165.24,165.19,23.92]
[1747448467790,12.43767263,165.22,165.19,23.92]
[1747448468099,12.43767263,165.23,165.19,23.92]
[1747448468476,12.43767263,165.23,165.18,26.0]
[1747448469871,12.43767263,165.21,165.11,6.05656834]
[1747448470074,12.43767263,165.19,165.12,42.56964886]
[1747448470280,12.43767263,165.19,165.13,26.0]
[1747448470892,17.88613045,165.19,165.13,26.0]
[1747448471471,17.88613045,165.19,165.12,42.56964886]
[1747448471472,12.43767263,165.17,165.12,42.56964886]
[1747448471676,12.43767263,165.16,165.12,23.92]
[1747448471882,12.43767263,165.17,165.12,23.92]
[1747448472703,12.43767263,165.18,165.12,18.64964886]
[1747448472913,12.43767263,165.2,165.14,18.64964886]
[1747448473200,5.44768944,165.21,165.14,18.64964886]
[1747448473407,39.61692639,165.24,165.14,18.64964886]
[1747448473585,13.61161524,165.3,165.18,18.64964886]
[1747448473786,12.43767263,165.26,165.19,23.8]
[1747448474103,13.61161524,165.3,165.19,23.8]
[1747448474104,12.43767263,165.27,165.19,23.8]
[1747448474602,12.43767263,165.26,165.19,23.8]
[1747448474802,12.43767263,165.27,165.2,18.64964886]
[1747448474986,12.43767263,165.27,165.2,44.64964886]
[1747448475186,12.43767263,165.28,165.2,44.64964886]
[1747448475403,17.88271885,165.29,165.2,44.64964886]
[1747448475911,12.43767263,165.28,165.2,44.64964886]
[1747448476709,17.88310363,165.28,165.21,6.05290236]
[1747448476890,12.43767263,165.27,165.21,6.05290236]
[1747448477214,5.445431,165.28,165.21,6.05290236]
[1747448477215,17.88310363,165.28,165.21,6.05290236]
[1747448477512,12.43767263,165.27,165.21,6.05290236]
[1747448477915,17.88336547,165.27,165.21,6.05290236]
[1747448478111,12.43767263,165.27,165.21,6.05290236]
[1747448478609,8.1474,165.32,165.21,6.05290236]
[1747448478610,5.44489034,165.3,165.22,18.64964886]
[1747448478796,12.43767263,165.29,165.22,18.64964886]
[1747448479104,49.78,165.33,165.22,18.64964886]
[1747448479105,5.4443898,165.31,165.22,18.64964886]
[1747448479315,17.88206243,165.31,165.22,42.40964886]
[1747448479504,5.4443898,165.31,165.22,42.40964886]
[1747448479804,5.44407338,165.32,165.25,26.0]
[1747448480007,13.60877127,165.34,165.25,32.05109721]
[1747448480308,12.43767263,165.32,165.26,42.42964886]
[1747448480698,5.44299969,165.35,165.26,42.42964886]
[1747448480899,12.43767263,165.34,165.26,42.42964886]
[1747448481109,12.43767263,165.33,165.26,42.42964886]
[1747448481280,5.44299969,165.35,165.26,42.42964886]
[1747448481281,12.43767263,165.32,165.26,23.78]
[1747448481480,12.43767263,165.31,165.26,23.78]
[1747448481902,12.43767263,165.29,165.21,6.05290236]
[1747448482186,12.43767263,165.27,165.23,23.78]
[1747448483118,12.43767263,165.26,165.2,44.64964886]
[1747448483288,12.43767263,165.24,165.19,226.56]
[1747448483487,12.43767263,165.23,165.19,26.0]
[1747448483907,12.43767263,165.23,165.18,23.78]
[1747448484106,13.61494129,165.26,165.18,49.78]
[1747448484306,12.43767263,165.23,165.18,23.78]
[1747448484815,12.43767263,165.23,165.18,49.78]
[1747448485491,17.8847114,165.23,165.18,49.78]
[1747448485903,17.8847114,165.23,165.17,6.2648]
[1747448485904,12.43767263,165.2,165.14,42.42964886]
[1747448486207,12.43767263,165.2,165.17,26.0]
[1747448486416,12.43767263,165.2,165.15,26.0]
[1747448486613,12.43767263,165.19,165.14,42.42964886]
[1747448487019,12.43767263,165.2,165.14,42.42964886]
[1747448487309,5.44629349,165.25,165.16,18.64964886]
[1747448487522,12.43767263,165.23,165.16,18.64964886]
[1747448487811,18.57417263,165.28,165.16,18.64964886]
[1747448487812,19.04474002,165.4,165.2,18.64964886]
[1747448487989,19.04474002,165.4,165.25,26.0]
[1747448487990,12.43767263,165.32,165.25,26.0]
[1747448488189,12.43767263,165.32,165.26,18.64964886]
[1747448488624,12.43767263,165.31,165.26,18.64964886]
[1747448488988,12.43767263,165.31,165.26,24.70067567]
[1747448489186,31.44337336,165.34,165.26,24.70067567]
[1747448489407,12.43767263,165.32,165.26,24.70067567]
[1747448489593,12.43767263,165.31,165.26,24.70067567]
[1747448490624,12.43767263,165.31,165.22,15.13133063]
[1747448490625,12.43767263,165.29,165.23,26.0]
[1747448490797,12.43767263,165.28,165.23,26.0]
[1747448491513,19.05165113,165.34,165.24,18.64964886]
[1747448491695,12.43767263,165.31,165.24,18.64964886]
[1747448491892,12.43767263,165.33,165.27,26.0]
[1747448492418,12.43767263,165.34,165.29,6.04997277]
[1747448493597,5.44234141,165.37,165.29,6.04997277]
[1747448493801,12.43767263,165.36,165.29,6.04997277]
[1747448493995,12.43767263,165.35,165.29,6.04997277]
[1747448494207,12.43767263,165.34,165.29,6.04997277]
[1747448494412,12.43767263,165.33,165.27,61.75273005]
[1747448494611,12.43767263,165.32,165.26,18.64964886]
[1747448495012,12.43767263,165.31,165.24,23.7]
[1747448495212,12.43767263,165.27,165.22,6.05250865]
[1747448495613,12.43767263,165.28,165.22,6.05250865]
[1747448495810,5.44508092,165.29,165.22,6.05250865]
[1747448495811,17.88275355,165.29,165.22,6.05250865]
[1747448496228,5.44508092,165.29,165.22,6.05250865]
[1747448496426,5.44299969,165.35,165.23,18.64964886]
[1747448496613,12.43767263,165.31,165.23,18.64964886]
[1747448496811,12.43767263,165.31,165.26,26.0]
[1747448497502,12.43767263,165.3,165.23,18.64964886]
[1747448497699,27.2122769,165.37,165.23,18.64964886]
[1747448497700,44.9282959,165.41,165.27,18.64964886]
[1747448497958,12.43767263,165.34,165.27,18.64964886]
[1747448498828,12.43767263,165.32,165.26,26.0]
[1747448499728,5.44299969,165.35,165.26,32.0508447]
[1747448499933,5.44299969,165.35,165.23,26.0]
[1747448499934,12.43767263,165.31,165.23,26.0]
[1747448500240,12.43767263,165.31,165.24,68.42964886]
[1747448501002,12.43767263,165.29,165.21,6.05290236]
[1747448501207,12.43767263,165.27,165.2,24.70281405]
[1747448501407,12.43767263,165.27,165.2,50.70281405]
[1747448501821,12.43767263,165.29,165.2,50.70281405]
[1747448502039,5.44494284,165.3,165.2,65.83598596]
[1747448502248,38.43767263,165.32,165.24,18.64964886]
[1747448503249,26.0,165.32,165.24,18.64964886]
[1747448503540,26.0,165.32,165.23,26.0]
[1747448503541,12.43767263,165.3,165.23,26.0]
[1747448503745,12.43767263,165.29,165.23,26.0]
[1747448504237,31.44421113,165.32,165.23,26.0]
[1747448504432,12.43767263,165.3,165.23,26.0]
[1747448504756,17.88247301,165.3,165.23,32.05211194]
[1747448504924,12.43767263,165.29,165.23,32.05211194]
[1747448505750,5.44480038,165.3,165.23,32.05211194]
[1747448506052,17.88247301,165.3,165.23,32.05211194]
[1747448506550,12.43767263,165.3,165.23,32.05211194]
[1747448506752,19.05280347,165.33,165.23,32.05211194]
[1747448507046,12.43767263,165.3,165.23,32.05211194]
[1747448507245,12.43767263,165.29,165.23,26.0]
[1747448507435,12.43767263,165.28,165.23,26.0]
[1747448508620,17.88287863,165.29,165.23,32.0521117]
[1747448508828,5.44398741,165.32,165.24,18.64964886]
[1747448509025,12.43767263,165.31,165.24,18.64964886]
[1747448509450,5.44398741,165.32,165.24,18.64964886]
[1747448509657,12.43767263,165.31,165.24,18.64964886]
[1747448510053,19.05395595,165.32,165.21,18.64964886]
[1747448510249,12.43767263,165.31,165.21,18.64964886]
[1747448510450,12.43767263,165.31,165.24,18.64964886]
[1747448510657,17.88199502,165.31,165.24,24.70116475]
[1747448511340,5.44332889,165.34,165.24,24.70116475]
[1747448511545,12.43767263,165.34,165.28,18.64964886]
[1747448511747,12.43767263,165.34,165.27,26.0]
[1747448512866,5.44365813,165.33,165.27,26.0]
[1747448513351,12.43767263,165.34,165.27,32.05060969]
[1747448513754,12.43767263,165.33,165.27,32.05060969]
[1747448514145,12.43767263,165.33,165.27,26.0]
[1747448514340,12.43767263,165.32,165.27,26.0]
[1747448514971,17.88188168,165.32,165.27,26.0]
[1747448515184,12.43767263,165.37,165.3,18.64964886]
[1747448516173,12.43767263,165.37,165.3,24.69905689]
[1747448516349,17.88001504,165.37,165.3,24.69905689]
[1747448516551,5.44193035,165.39,165.3,24.69905689]
[1747448516741,12.43767263,165.38,165.3,24.69905689]
[1747448517255,5.44193035,165.39,165.3,24.69905689]
[1747448517449,12.43767263,165.38,165.3,24.69905689]
[1747448517975,5.44036752,165.43,165.3,39.82307382]
[1747448518273,37.19313105,165.49,165.33,26.0]
[1747448518488,12.43767263,165.4,165.33,26.0]
[1747448518646,12.43767263,165.4,165.33,32.04820438]
[1747448518849,12.43767263,165.4,165.34,26.0]
[1747448519277,19.03323262,165.5,165.35,18.64964886]
[1747448519566,12.43767263,165.44,165.35,18.64964886]
[1747448520512,12.43767263,165.45,165.38,18.64964886]
[1747448520680,12.43767263,165.44,165.37,30.2397]